[Event "Titled Tuesday Blitz June 13 Late 2023"]
[White "Przybylski, Wojciech"]
[Black "Bartel, Michal"]
[WhiteFideId "1117599"]
[BlackFideId "1119257"]
[WhiteElo "2228"]
[BlackElo "2282"]
[Result "0-1"]
[Round "11"]
[TimeControl "180+2"]
[Date "2023.06.13"]
[WhiteClock "0:00:00"]
[BlackClock "0:00:27"]
[Board "50"]

1. d4 {[%clk 0:02:53]}  Nf6 {[%clk 0:02:59]} 2. c4 {[%clk 0:02:51]}  c5 {[%clk 0:03:00]} 3. e3 {[%clk 0:02:42]}  e6 {[%clk 0:03:00]} 4. Nf3 {[%clk 0:02:39]}  b6 {[%clk 0:03:00]} 5. Nc3 {[%clk 0:02:38]}  Bb7 {[%clk 0:03:00]} 6. Be2 {[%clk 0:02:22]}  Be7 {[%clk 0:03:00]} 7. O-O {[%clk 0:02:21]}  O-O {[%clk 0:03:01]} 8. Re1 {[%clk 0:02:20]}  d6 {[%clk 0:03:01]} 9. h3 {[%clk 0:02:19]}  a6 {[%clk 0:03:02]} 10. a3 {[%clk 0:02:19]}  Qc7 {[%clk 0:03:02]} 11. b3 {[%clk 0:02:17]}  Nbd7 {[%clk 0:03:03]} 12. Bb2 {[%clk 0:02:17]}  Rac8 {[%clk 0:03:03]} 13. Rc1 {[%clk 0:02:18]}  Qb8 {[%clk 0:03:04]} 14. d5 {[%clk 0:02:12]}  exd5 {[%clk 0:03:03]} 15. cxd5 {[%clk 0:02:09]}  b5 {[%clk 0:03:03]} 16. b4 {[%clk 0:02:01]}  c4 {[%clk 0:02:54]} 17. e4 {[%clk 0:01:59]}  Rfe8 {[%clk 0:02:53]} 18. Nd4 {[%clk 0:01:58]}  Bf8 {[%clk 0:02:53]} 19. f3 {[%clk 0:01:57]}  Ne5 {[%clk 0:02:49]} 20. Rc2 {[%clk 0:01:54]}  Ng6 {[%clk 0:02:47]} 21. Bf1 {[%clk 0:01:53]}  Qa7 {[%clk 0:02:33]} 22. Kh2 {[%clk 0:01:52]}  Nd7 {[%clk 0:02:27]} 23. Nf5 {[%clk 0:01:48]}  Nde5 {[%clk 0:02:24]} 24. Nb1 {[%clk 0:01:25]}  Qb6 {[%clk 0:02:20]} 25. Bd4 {[%clk 0:01:23]}  Qd8 {[%clk 0:02:19]} 26. Qd2 {[%clk 0:01:19]}  Nh4 {[%clk 0:01:57]} 27. Rc3 {[%clk 0:01:07]}  Nxf5 {[%clk 0:01:56]} 28. exf5 {[%clk 0:01:05]}  Bxd5 {[%clk 0:01:51]} 29. Rce3 {[%clk 0:01:05]}  Qd7 {[%clk 0:01:30]} 30. Bc3 {[%clk 0:00:53]}  Bc6 {[%clk 0:01:26]} 31. f4 {[%clk 0:00:40]}  Qxf5 {[%clk 0:01:19]} 32. fxe5 {[%clk 0:00:39]}  dxe5 {[%clk 0:01:20]} 33. Rxe5 {[%clk 0:00:35]}  Rxe5 {[%clk 0:01:20]} 34. Bxe5 {[%clk 0:00:34]}  Re8 {[%clk 0:01:18]} 35. Bg3 {[%clk 0:00:34]}  Rxe1 {[%clk 0:01:17]} 36. Qxe1 {[%clk 0:00:34]}  h5 {[%clk 0:01:13]} 37. Nc3 {[%clk 0:00:25]}  Qc2 {[%clk 0:01:06]} 38. Be5 {[%clk 0:00:21]}  a5 {[%clk 0:00:56]} 39. Ne2 {[%clk 0:00:18]}  Qe4 {[%clk 0:00:52]} 40. Bg3 {[%clk 0:00:14]}  axb4 {[%clk 0:00:52]} 41. axb4 {[%clk 0:00:14]}  h4 {[%clk 0:00:50]} 42. Bf2 {[%clk 0:00:13]}  Bd6+ {[%clk 0:00:48]} 43. Kh1 {[%clk 0:00:11]}  Qe5 {[%clk 0:00:46]} 44. Bg1 {[%clk 0:00:11]}  Qe6 {[%clk 0:00:41]} 45. Qxh4 {[%clk 0:00:11]}  Bxb4 {[%clk 0:00:38]} 46. Nd4 {[%clk 0:00:10]}  Qd5 {[%clk 0:00:33]} 47. Nxc6 {[%clk 0:00:10]}  Qxc6 {[%clk 0:00:34]} 48. Qd8+ {[%clk 0:00:09]}  Bf8 {[%clk 0:00:32]} 49. Bd4 {[%clk 0:00:09]}  c3 {[%clk 0:00:30]} 50. Qg5 {[%clk 0:00:06]}  c2 {[%clk 0:00:27]} 51. Be3 {[%clk 0:00:04]}  b4 {[%clk 0:00:27]} 52. Bd3 {[%clk 0:00:04]}  b3 {[%clk 0:00:25]} 53. Qh5 {[%clk 0:00:02]}  c1=Q+ {[%clk 0:00:25]} 54. Bxc1 {[%clk 0:00:02]}  Qxc1+ {[%clk 0:00:25]} 55. Kh2 {[%clk 0:00:02]}  Bd6+ {[%clk 0:00:23]} 56. g3 {[%clk 0:00:03]}  Qd2+ {[%clk 0:00:23]} 57. Qe2 {[%clk 0:00:03]}  Qxe2+ {[%clk 0:00:24]} 58. Bxe2 {[%clk 0:00:03]}  b2 {[%clk 0:00:24]} 59. Bd3 {[%clk 0:00:03]}  Kf8 {[%clk 0:00:21]} 60. Kg2 {[%clk 0:00:04]}  Ke7 {[%clk 0:00:22]} 61. g4 {[%clk 0:00:04]}  Kf6 {[%clk 0:00:22]} 62. Kf3 {[%clk 0:00:04]}  Ke5 {[%clk 0:00:23]} 63. Ke3 {[%clk 0:00:04]}  Bc5+ {[%clk 0:00:24]} 64. Kd2 {[%clk 0:00:04]}  Kf4 {[%clk 0:00:24]} 65. Kc2 {[%clk 0:00:04]}  Bd4 {[%clk 0:00:24]} 66. Bc4 {[%clk 0:00:04]}  f6 {[%clk 0:00:24]} 67. Be6 {[%clk 0:00:03]}  Kg3 {[%clk 0:00:24]} 68. Kb1 {[%clk 0:00:02]}  Kxh3 {[%clk 0:00:25]} 69. g5+ {[%clk 0:00:02]}  Kg3 {[%clk 0:00:25]} 70. gxf6 {[%clk 0:00:03]}  gxf6 {[%clk 0:00:26]} 71. Kc2 {[%clk 0:00:03]}  Kf4 {[%clk 0:00:26]} 72. Ba2 {[%clk 0:00:03]}  f5 {[%clk 0:00:25]} 73. Kd3 {[%clk 0:00:03]}  Bg7 {[%clk 0:00:25]} 74. Bb1 {[%clk 0:00:03]}  Kg3 {[%clk 0:00:24]} 75. Ke2 {[%clk 0:00:03]}  f4 {[%clk 0:00:25]} 76. Kf1 {[%clk 0:00:04]}  f3 {[%clk 0:00:25]} 77. Bc2 {[%clk 0:00:04]}  Kf4 {[%clk 0:00:25]} 78. Bb1 {[%clk 0:00:04]}  Ke3 {[%clk 0:00:26]} 79. Bc2 {[%clk 0:00:04]}  Bd4 {[%clk 0:00:26]} 80. Bf5 {[%clk 0:00:03]}  Kd2 {[%clk 0:00:26]} 81. Bg6 {[%clk 0:00:04]}  Kc1 {[%clk 0:00:27]} 82. Ke1 {[%clk 0:00:00]}  b1=Q {[%clk 0:00:27]} 0-1


[Site "https://www.chess.com"]

[Event "Titled Tuesday Blitz June 13 Late 2023"]
[White "Mendez Fortes, Eduardo Jesus"]
[Black "Zavortink, Matt"]
[WhiteFideId "3502376"]
[BlackFideId "2034263"]
[WhiteElo "2307"]
[BlackElo "2478"]
[Result "1-0"]
[Round "11"]
[TimeControl "180+2"]
[Date "2023.06.13"]
[WhiteClock "0:01:16"]
[BlackClock "0:00:00"]
[Board "56"]

1. e4 {[%clk 0:02:58]}  e6 {[%clk 0:02:59]} 2. d4 {[%clk 0:02:57]}  d5 {[%clk 0:02:59]} 3. Nd2 {[%clk 0:02:58]}  c5 {[%clk 0:02:58]} 4. exd5 {[%clk 0:02:58]}  Qxd5 {[%clk 0:02:59]} 5. Ngf3 {[%clk 0:02:59]}  cxd4 {[%clk 0:02:59]} 6. Bc4 {[%clk 0:03:00]}  Qd7 {[%clk 0:02:59]} 7. O-O {[%clk 0:03:01]}  Nc6 {[%clk 0:03:00]} 8. Nb3 {[%clk 0:03:01]}  a6 {[%clk 0:03:00]} 9. Nbxd4 {[%clk 0:03:02]}  Nxd4 {[%clk 0:03:01]} 10. Nxd4 {[%clk 0:03:03]}  Bc5 {[%clk 0:03:00]} 11. c3 {[%clk 0:03:02]}  Bxd4 {[%clk 0:02:59]} 12. cxd4 {[%clk 0:03:03]}  b5 {[%clk 0:02:59]} 13. Bb3 {[%clk 0:03:02]}  Bb7 {[%clk 0:02:59]} 14. Qg4 {[%clk 0:03:02]}  Nf6 {[%clk 0:02:48]} 15. Qh4 {[%clk 0:02:57]}  O-O {[%clk 0:02:27]} 16. Be3 {[%clk 0:02:55]}  Rac8 {[%clk 0:02:22]} 17. Rad1 {[%clk 0:02:51]}  Bd5 {[%clk 0:02:20]} 18. Bg5 {[%clk 0:02:50]}  Ne4 {[%clk 0:02:11]} 19. Bf4 {[%clk 0:02:50]}  Bxb3 {[%clk 0:02:05]} 20. axb3 {[%clk 0:02:51]}  Nf6 {[%clk 0:01:58]} 21. Rfe1 {[%clk 0:02:50]}  Nd5 {[%clk 0:01:57]} 22. Be5 {[%clk 0:02:49]}  f6 {[%clk 0:01:55]} 23. Bg3 {[%clk 0:02:49]}  Rc6 {[%clk 0:01:49]} 24. Qe4 {[%clk 0:02:48]}  Rfc8 {[%clk 0:01:46]} 25. h4 {[%clk 0:02:46]}  Qf7 {[%clk 0:01:44]} 26. Qf3 {[%clk 0:02:43]}  Qg6 {[%clk 0:01:34]} 27. Kh2 {[%clk 0:02:35]}  Kh8 {[%clk 0:01:25]} 28. Re2 {[%clk 0:02:32]}  Qf7 {[%clk 0:00:55]} 29. Rde1 {[%clk 0:02:26]}  Ne7 {[%clk 0:00:52]} 30. Bf4 {[%clk 0:02:15]}  Nf5 {[%clk 0:00:51]} 31. d5 {[%clk 0:02:09]}  exd5 {[%clk 0:00:39]} 32. Qg4 {[%clk 0:02:07]}  g6 {[%clk 0:00:34]} 33. h5 {[%clk 0:02:02]}  Rg8 {[%clk 0:00:32]} 34. Bd2 {[%clk 0:01:52]}  Rcc8 {[%clk 0:00:27]} 35. Bc3 {[%clk 0:01:49]}  d4 {[%clk 0:00:25]} 36. Bxd4 {[%clk 0:01:48]}  Nxd4 {[%clk 0:00:25]} 37. Qxd4 {[%clk 0:01:49]}  Rcd8 {[%clk 0:00:22]} 38. Qf4 {[%clk 0:01:46]}  gxh5 {[%clk 0:00:19]} 39. Re6 {[%clk 0:01:41]}  Rg6 {[%clk 0:00:17]} 40. Qf3 {[%clk 0:01:38]}  Rdg8 {[%clk 0:00:17]} 41. Kh1 {[%clk 0:01:36]}  h4 {[%clk 0:00:16]} 42. Re7 {[%clk 0:01:33]}  Qf8 {[%clk 0:00:13]} 43. Ra7 {[%clk 0:01:26]}  Rxg2 {[%clk 0:00:12]} 44. Qxg2 {[%clk 0:01:22]}  Rxg2 {[%clk 0:00:11]} 45. Kxg2 {[%clk 0:01:23]}  Qg8+ {[%clk 0:00:10]} 46. Kf1 {[%clk 0:01:22]}  Qb8 {[%clk 0:00:05]} 47. Rae7 {[%clk 0:01:20]}  Qb6 {[%clk 0:00:00]} 48. Rc1 {[%clk 0:01:16]} 1-0


[Site "https://www.chess.com"]

[Event "Titled Tuesday Blitz June 13 Late 2023"]
[White "ArchibaldCerveza29"]
[Black "Sadovsky, Artem"]
[BlackFideId "4155840"]
[WhiteElo "2461"]
[BlackElo "2314"]
[Result "1-0"]
[Round "11"]
[TimeControl "180+2"]
[Date "2023.06.13"]
[WhiteClock "0:00:14"]
[BlackClock "0:00:00"]
[Board "58"]

1. e4 {[%clk 0:03:00]}  g6 {[%clk 0:02:52]} 2. d4 {[%clk 0:03:00]}  Bg7 {[%clk 0:02:48]} 3. Nc3 {[%clk 0:03:00]}  c6 {[%clk 0:02:43]} 4. h3 {[%clk 0:02:44]}  d5 {[%clk 0:02:43]} 5. Nf3 {[%clk 0:02:43]}  dxe4 {[%clk 0:02:42]} 6. Nxe4 {[%clk 0:02:44]}  Nd7 {[%clk 0:02:41]} 7. Bd3 {[%clk 0:02:36]}  Ngf6 {[%clk 0:02:42]} 8. Ned2 {[%clk 0:02:36]}  O-O {[%clk 0:02:41]} 9. c3 {[%clk 0:02:36]}  e5 {[%clk 0:02:37]} 10. O-O {[%clk 0:02:36]}  Re8 {[%clk 0:02:33]} 11. dxe5 {[%clk 0:02:31]}  Nxe5 {[%clk 0:02:31]} 12. Nxe5 {[%clk 0:02:30]}  Rxe5 {[%clk 0:02:32]} 13. Qc2 {[%clk 0:02:21]}  Bxh3 {[%clk 0:02:24]} 14. Nf3 {[%clk 0:01:56]}  Rd5 {[%clk 0:02:23]} 15. Bc4 {[%clk 0:01:56]}  Bf5 {[%clk 0:02:23]} 16. Qb3 {[%clk 0:01:52]}  Rd7 {[%clk 0:02:12]} 17. Ne5 {[%clk 0:01:52]}  Rc7 {[%clk 0:01:50]} 18. Nxf7 {[%clk 0:01:44]}  Qe7 {[%clk 0:01:45]} 19. Bf4 {[%clk 0:01:33]}  b5 {[%clk 0:01:40]} 20. Nh6+ {[%clk 0:01:28]}  Kh8 {[%clk 0:01:37]} 21. Nxf5 {[%clk 0:00:51]}  gxf5 {[%clk 0:01:38]} 22. Be6 {[%clk 0:00:41]}  Rb7 {[%clk 0:01:06]} 23. Bxf5 {[%clk 0:00:40]}  Nd5 {[%clk 0:01:06]} 24. Bg3 {[%clk 0:00:37]}  Qg5 {[%clk 0:01:05]} 25. Be4 {[%clk 0:00:33]}  Rf8 {[%clk 0:01:01]} 26. Rad1 {[%clk 0:00:29]}  Ne3 {[%clk 0:00:56]} 27. Qe6 {[%clk 0:00:09]}  Nxf1 {[%clk 0:00:50]} 28. Rxf1 {[%clk 0:00:09]}  Re7 {[%clk 0:00:49]} 29. Qxc6 {[%clk 0:00:09]}  b4 {[%clk 0:00:45]} 30. cxb4 {[%clk 0:00:08]}  Rf6 {[%clk 0:00:41]} 31. Qa8+ {[%clk 0:00:08]}  Rf8 {[%clk 0:00:40]} 32. Qc6 {[%clk 0:00:08]}  Bd4 {[%clk 0:00:37]} 33. Qd5 {[%clk 0:00:05]}  Qg7 {[%clk 0:00:29]} 34. Bf3 {[%clk 0:00:04]}  Rd7 {[%clk 0:00:27]} 35. Qc6 {[%clk 0:00:03]}  Rf6 {[%clk 0:00:19]} 36. Qa8+ {[%clk 0:00:03]}  Rf8 {[%clk 0:00:19]} 37. Qc6 {[%clk 0:00:03]}  Rxf3 {[%clk 0:00:19]} 38. Qxf3 {[%clk 0:00:02]}  Rf7 {[%clk 0:00:19]} 39. Qa8+ {[%clk 0:00:02]}  Rf8 {[%clk 0:00:20]} 40. Qd5 {[%clk 0:00:03]}  Bb6 {[%clk 0:00:17]} 41. Qb3 {[%clk 0:00:01]}  Rg8 {[%clk 0:00:13]} 42. Qc3 {[%clk 0:00:02]}  Qxc3 {[%clk 0:00:12]} 43. bxc3 {[%clk 0:00:03]}  Rxg3 {[%clk 0:00:11]} 44. c4 {[%clk 0:00:03]}  Rc3 {[%clk 0:00:11]} 45. c5 {[%clk 0:00:04]}  Bc7 {[%clk 0:00:12]} 46. Rd1 {[%clk 0:00:04]}  Rc4 {[%clk 0:00:12]} 47. g3 {[%clk 0:00:04]}  Rxb4 {[%clk 0:00:10]} 48. Rd7 {[%clk 0:00:04]}  Rb1+ {[%clk 0:00:10]} 49. Kg2 {[%clk 0:00:04]}  Ba5 {[%clk 0:00:10]} 50. Rxa7 {[%clk 0:00:05]}  Bb4 {[%clk 0:00:10]} 51. c6 {[%clk 0:00:05]}  Rc1 {[%clk 0:00:10]} 52. c7 {[%clk 0:00:05]}  Bf8 {[%clk 0:00:10]} 53. Ra8 {[%clk 0:00:05]}  Rxc7 {[%clk 0:00:10]} 54. Rxf8+ {[%clk 0:00:05]}  Kg7 {[%clk 0:00:10]} 55. Ra8 {[%clk 0:00:06]}  Rc2 {[%clk 0:00:09]} 56. Ra6 {[%clk 0:00:06]}  Rc6 {[%clk 0:00:09]} 57. Rxc6 {[%clk 0:00:06]}  h5 {[%clk 0:00:05]} 58. Ra6 {[%clk 0:00:07]}  h4 {[%clk 0:00:06]} 59. gxh4 {[%clk 0:00:07]}  Kh7 {[%clk 0:00:06]} 60. a4 {[%clk 0:00:08]}  Kg7 {[%clk 0:00:06]} 61. a5 {[%clk 0:00:09]}  Kh7 {[%clk 0:00:07]} 62. Rb6 {[%clk 0:00:10]}  Kg7 {[%clk 0:00:08]} 63. a6 {[%clk 0:00:11]}  Kh7 {[%clk 0:00:09]} 64. a7 {[%clk 0:00:12]}  Kg7 {[%clk 0:00:10]} 65. a8=Q {[%clk 0:00:13]}  Kh7 {[%clk 0:00:00]} 66. Qa7+ {[%clk 0:00:14]} 1-0


[Site "https://www.chess.com"]

[Event "Titled Tuesday Blitz June 13 Late 2023"]
[White "Pert, Richard G"]
[Black "Nikologorsky, Matfei"]
[WhiteFideId "404748"]
[BlackFideId "24102474"]
[WhiteElo "2441"]
[BlackElo "2153"]
[Result "1-0"]
[Round "11"]
[TimeControl "180+2"]
[Date "2023.06.13"]
[WhiteClock "0:00:53"]
[BlackClock "0:00:19"]
[Board "60"]

1. e4 {[%clk 0:03:00]}  c5 {[%clk 0:02:59]} 2. d4 {[%clk 0:02:59]}  cxd4 {[%clk 0:02:59]} 3. c3 {[%clk 0:02:59]}  dxc3 {[%clk 0:03:00]} 4. Nxc3 {[%clk 0:02:59]}  Nc6 {[%clk 0:03:00]} 5. Nf3 {[%clk 0:03:00]}  d6 {[%clk 0:03:00]} 6. Bc4 {[%clk 0:02:59]}  e6 {[%clk 0:03:01]} 7. O-O {[%clk 0:02:56]}  Nf6 {[%clk 0:03:01]} 8. Qe2 {[%clk 0:02:57]}  Be7 {[%clk 0:02:59]} 9. Rd1 {[%clk 0:02:58]}  e5 {[%clk 0:02:59]} 10. Be3 {[%clk 0:02:56]}  Bg4 {[%clk 0:02:54]} 11. Rac1 {[%clk 0:02:55]}  O-O {[%clk 0:02:49]} 12. h3 {[%clk 0:02:55]}  Bxf3 {[%clk 0:02:45]} 13. Qxf3 {[%clk 0:02:56]}  a6 {[%clk 0:02:16]} 14. Bb3 {[%clk 0:02:46]}  Rc8 {[%clk 0:02:14]} 15. Na4 {[%clk 0:02:43]}  Nd7 {[%clk 0:01:56]} 16. Nc3 {[%clk 0:02:36]}  Na5 {[%clk 0:01:47]} 17. Bd5 {[%clk 0:02:32]}  Nf6 {[%clk 0:01:37]} 18. Na4 {[%clk 0:02:18]}  Nxd5 {[%clk 0:01:20]} 19. Rxd5 {[%clk 0:02:11]}  Nc4 {[%clk 0:01:17]} 20. Rcd1 {[%clk 0:01:59]}  Nxe3 {[%clk 0:01:16]} 21. Qxe3 {[%clk 0:01:58]}  b5 {[%clk 0:01:09]} 22. Nc3 {[%clk 0:01:41]}  Qc7 {[%clk 0:01:07]} 23. R5d3 {[%clk 0:01:39]}  Qb7 {[%clk 0:01:06]} 24. Nd5 {[%clk 0:01:37]}  Bd8 {[%clk 0:01:06]} 25. Qf3 {[%clk 0:01:34]}  Rc2 {[%clk 0:00:55]} 26. b3 {[%clk 0:01:19]}  Rxa2 {[%clk 0:00:53]} 27. Qg4 {[%clk 0:01:18]}  g6 {[%clk 0:00:39]} 28. Rf3 {[%clk 0:01:09]}  Rc2 {[%clk 0:00:33]} 29. Ne3 {[%clk 0:01:05]}  Rc6 {[%clk 0:00:31]} 30. Nf5 {[%clk 0:01:05]}  Kh8 {[%clk 0:00:20]} 31. Nxd6 {[%clk 0:01:02]}  Qc7 {[%clk 0:00:20]} 32. Nxf7+ {[%clk 0:00:54]}  Rxf7 {[%clk 0:00:20]} 33. Rxf7 {[%clk 0:00:54]}  Qxf7 {[%clk 0:00:21]} 34. Rxd8+ {[%clk 0:00:54]}  Kg7 {[%clk 0:00:19]} 35. Rd7 {[%clk 0:00:53]} 1-0


[Site "https://www.chess.com"]

[Event "Titled Tuesday Blitz June 13 Late 2023"]
[White "FuenfgegenWilly"]
[Black "Yeritsyan, Hayk"]
[BlackFideId "13307320"]
[WhiteElo "2419"]
[BlackElo "2511"]
[Result "1/2-1/2"]
[Round "11"]
[TimeControl "180+2"]
[Date "2023.06.13"]
[WhiteClock "0:00:03"]
[BlackClock "0:00:08"]
[Board "62"]

1. Nf3 {[%clk 0:03:00]}  d5 {[%clk 0:02:59]} 2. e3 {[%clk 0:03:00]}  Nf6 {[%clk 0:02:59]} 3. c4 {[%clk 0:03:00]}  c6 {[%clk 0:03:00]} 4. Nc3 {[%clk 0:03:01]}  Bf5 {[%clk 0:02:59]} 5. b3 {[%clk 0:03:00]}  e6 {[%clk 0:02:59]} 6. Bb2 {[%clk 0:02:59]}  h6 {[%clk 0:02:59]} 7. h3 {[%clk 0:02:52]}  Bd6 {[%clk 0:02:58]} 8. g4 {[%clk 0:02:50]}  Bh7 {[%clk 0:02:58]} 9. Bg2 {[%clk 0:02:51]}  O-O {[%clk 0:02:58]} 10. d4 {[%clk 0:02:48]}  Na6 {[%clk 0:02:57]} 11. a3 {[%clk 0:02:45]}  Nb8 {[%clk 0:02:54]} 12. Ne2 {[%clk 0:02:43]}  Nbd7 {[%clk 0:02:54]} 13. Ng3 {[%clk 0:02:40]}  Bxg3 {[%clk 0:02:45]} 14. fxg3 {[%clk 0:02:41]}  Qc7 {[%clk 0:02:44]} 15. Ne5 {[%clk 0:02:40]}  Nxe5 {[%clk 0:02:42]} 16. dxe5 {[%clk 0:02:41]}  Nd7 {[%clk 0:02:43]} 17. Qd4 {[%clk 0:02:37]}  dxc4 {[%clk 0:02:24]} 18. bxc4 {[%clk 0:02:36]}  Rad8 {[%clk 0:02:22]} 19. O-O {[%clk 0:02:35]}  Nb6 {[%clk 0:02:12]} 20. Qc5 {[%clk 0:02:33]}  Na4 {[%clk 0:02:06]} 21. Qb4 {[%clk 0:02:32]}  Nxb2 {[%clk 0:02:04]} 22. Qxb2 {[%clk 0:02:33]}  Rd3 {[%clk 0:02:02]} 23. Rab1 {[%clk 0:02:28]}  Rxe3 {[%clk 0:01:54]} 24. Qxb7 {[%clk 0:02:26]}  Qxe5 {[%clk 0:01:54]} 25. Rb3 {[%clk 0:02:22]}  Qxg3 {[%clk 0:01:48]} 26. Rxe3 {[%clk 0:02:16]}  Qxe3+ {[%clk 0:01:47]} 27. Kh1 {[%clk 0:02:17]}  Be4 {[%clk 0:01:45]} 28. Bxe4 {[%clk 0:02:07]}  Qxe4+ {[%clk 0:01:42]} 29. Kg1 {[%clk 0:02:06]}  Qe3+ {[%clk 0:01:40]} 30. Kg2 {[%clk 0:02:05]}  Qe4+ {[%clk 0:01:31]} 31. Rf3 {[%clk 0:02:03]}  Qxc4 {[%clk 0:01:26]} 32. Qxa7 {[%clk 0:02:03]}  Qe2+ {[%clk 0:01:20]} 33. Kg3 {[%clk 0:02:01]}  Qe1+ {[%clk 0:01:17]} 34. Kg2 {[%clk 0:02:00]}  Qe4 {[%clk 0:01:05]} 35. Kg3 {[%clk 0:01:56]}  Qe5+ {[%clk 0:01:00]} 36. Kg2 {[%clk 0:01:56]}  Qd5 {[%clk 0:01:00]} 37. Kg3 {[%clk 0:01:56]}  c5 {[%clk 0:01:01]} 38. Qc7 {[%clk 0:01:52]}  f6 {[%clk 0:00:50]} 39. Rc3 {[%clk 0:01:49]}  Ra8 {[%clk 0:00:44]} 40. Kh4 {[%clk 0:01:13]}  Qg5+ {[%clk 0:00:17]} 41. Kg3 {[%clk 0:01:13]}  Qe5+ {[%clk 0:00:16]} 42. Qxe5 {[%clk 0:01:12]}  fxe5 {[%clk 0:00:17]} 43. Kf3 {[%clk 0:00:50]}  Ra4 {[%clk 0:00:16]} 44. Rxc5 {[%clk 0:00:46]}  Rxa3+ {[%clk 0:00:17]} 45. Kg2 {[%clk 0:00:45]}  Ra2+ {[%clk 0:00:13]} 46. Kg3 {[%clk 0:00:42]}  Ra3+ {[%clk 0:00:14]} 47. Kg2 {[%clk 0:00:27]}  Kf7 {[%clk 0:00:11]} 48. Rxe5 {[%clk 0:00:26]}  Kf6 {[%clk 0:00:12]} 49. Rb5 {[%clk 0:00:26]}  e5 {[%clk 0:00:12]} 50. h4 {[%clk 0:00:23]}  Rc3 {[%clk 0:00:10]} 51. Rb6+ {[%clk 0:00:23]}  Kf7 {[%clk 0:00:10]} 52. g5 {[%clk 0:00:22]}  hxg5 {[%clk 0:00:10]} 53. hxg5 {[%clk 0:00:23]}  Rd3 {[%clk 0:00:10]} 54. Kf2 {[%clk 0:00:21]}  Rc3 {[%clk 0:00:09]} 55. Kg2 {[%clk 0:00:16]}  Rd3 {[%clk 0:00:09]} 56. Kf2 {[%clk 0:00:16]}  Ra3 {[%clk 0:00:08]} 57. Kg2 {[%clk 0:00:16]}  Kg8 {[%clk 0:00:07]} 58. g6 {[%clk 0:00:14]}  Kf8 {[%clk 0:00:07]} 59. Re6 {[%clk 0:00:12]}  Ra5 {[%clk 0:00:06]} 60. Kf3 {[%clk 0:00:12]}  Ra3+ {[%clk 0:00:04]} 61. Ke4 {[%clk 0:00:11]}  Ra1 {[%clk 0:00:04]} 62. Kxe5 {[%clk 0:00:07]}  Re1+ {[%clk 0:00:03]} 63. Kd6 {[%clk 0:00:07]}  Rd1+ {[%clk 0:00:03]} 64. Kc7 {[%clk 0:00:07]}  Rg1 {[%clk 0:00:03]} 65. Kd7 {[%clk 0:00:06]}  Rd1+ {[%clk 0:00:02]} 66. Rd6 {[%clk 0:00:06]}  Rxd6+ {[%clk 0:00:02]} 67. Kxd6 {[%clk 0:00:06]}  Kg8 {[%clk 0:00:03]} 68. Ke6 {[%clk 0:00:06]}  Kh8 {[%clk 0:00:03]} 69. Ke7 {[%clk 0:00:06]}  Kg8 {[%clk 0:00:04]} 70. Ke8 {[%clk 0:00:06]}  Kh8 {[%clk 0:00:05]} 71. Ke7 {[%clk 0:00:07]}  Kg8 {[%clk 0:00:06]} 72. Kd7 {[%clk 0:00:05]}  Kh8 {[%clk 0:00:07]} 73. Kd6 {[%clk 0:00:05]}  Kg8 {[%clk 0:00:08]} 74. Ke6 {[%clk 0:00:05]}  Kf8 {[%clk 0:00:08]} 75. Kd6 {[%clk 0:00:04]}  Ke8 {[%clk 0:00:08]} 76. Ke6 {[%clk 0:00:05]}  Kf8 {[%clk 0:00:08]} 77. Kd7 {[%clk 0:00:05]}  Kg8 {[%clk 0:00:08]} 78. Ke8 {[%clk 0:00:06]}  Kh8 {[%clk 0:00:08]} 79. Kf7 {[%clk 0:00:03]} 1/2-1/2


[Site "https://www.chess.com"]

[Event "Titled Tuesday Blitz June 13 Late 2023"]
[White "Szente Varga, Fruzsina"]
[Black "Haszon, David"]
[WhiteFideId "712264"]
[BlackFideId "733610"]
[WhiteElo "1994"]
[BlackElo "2210"]
[Result "0-1"]
[Round "11"]
[TimeControl "180+2"]
[Date "2023.06.13"]
[WhiteClock "0:00:07"]
[BlackClock "0:00:14"]
[Board "63"]

1. e4 {[%clk 0:02:59]}  c5 {[%clk 0:02:50]} 2. Nf3 {[%clk 0:02:59]}  e6 {[%clk 0:02:49]} 3. b3 {[%clk 0:02:59]}  d5 {[%clk 0:02:43]} 4. exd5 {[%clk 0:02:56]}  exd5 {[%clk 0:02:43]} 5. Bb5+ {[%clk 0:02:56]}  Bd7 {[%clk 0:02:41]} 6. Bxd7+ {[%clk 0:02:56]}  Nxd7 {[%clk 0:02:41]} 7. O-O {[%clk 0:02:56]}  Be7 {[%clk 0:02:40]} 8. Re1 {[%clk 0:02:56]}  Ngf6 {[%clk 0:02:40]} 9. Qe2 {[%clk 0:02:56]}  Kf8 {[%clk 0:02:24]} 10. Ba3 {[%clk 0:02:53]}  b6 {[%clk 0:02:21]} 11. d4 {[%clk 0:02:49]}  Bd6 {[%clk 0:02:17]} 12. dxc5 {[%clk 0:02:42]}  bxc5 {[%clk 0:02:16]} 13. Nbd2 {[%clk 0:02:39]}  Qc7 {[%clk 0:02:14]} 14. c4 {[%clk 0:02:33]}  d4 {[%clk 0:02:05]} 15. Qd3 {[%clk 0:02:19]}  Kg8 {[%clk 0:01:50]} 16. Ne4 {[%clk 0:02:03]}  Nxe4 {[%clk 0:01:43]} 17. Qxe4 {[%clk 0:02:02]}  Rf8 {[%clk 0:01:44]} 18. h3 {[%clk 0:01:52]}  Nf6 {[%clk 0:01:42]} 19. Qf5 {[%clk 0:01:48]}  h5 {[%clk 0:01:26]} 20. Re2 {[%clk 0:01:09]}  Rh6 {[%clk 0:01:25]} 21. Rae1 {[%clk 0:01:05]}  Rg6 {[%clk 0:01:23]} 22. Nh4 {[%clk 0:01:02]}  Rh6 {[%clk 0:01:23]} 23. Bc1 {[%clk 0:00:43]}  Rh7 {[%clk 0:01:13]} 24. Qg5 {[%clk 0:00:42]}  Qd8 {[%clk 0:00:55]} 25. Nf5 {[%clk 0:00:39]}  Bb8 {[%clk 0:00:52]} 26. Ne7+ {[%clk 0:00:34]}  Kh8 {[%clk 0:00:51]} 27. Qxc5 {[%clk 0:00:28]}  d3 {[%clk 0:00:48]} 28. Rd2 {[%clk 0:00:21]}  Re8 {[%clk 0:00:46]} 29. Ba3 {[%clk 0:00:18]}  Bf4 {[%clk 0:00:38]} 30. Rdd1 {[%clk 0:00:17]}  d2 {[%clk 0:00:38]} 31. Re2 {[%clk 0:00:17]}  Rh6 {[%clk 0:00:38]} 32. Qf5 {[%clk 0:00:15]}  Qd4 {[%clk 0:00:21]} 33. Ng6+ {[%clk 0:00:13]}  Rxg6 {[%clk 0:00:20]} 34. Rxe8+ {[%clk 0:00:13]}  Nxe8 {[%clk 0:00:19]} 35. Qxh5+ {[%clk 0:00:13]}  Bh6 {[%clk 0:00:18]} 36. Qe2 {[%clk 0:00:13]}  Re6 {[%clk 0:00:16]} 37. Qf3 {[%clk 0:00:11]}  Re1+ {[%clk 0:00:16]} 38. Kh2 {[%clk 0:00:11]}  Qf4+ {[%clk 0:00:15]} 39. Qxf4 {[%clk 0:00:09]}  Bxf4+ {[%clk 0:00:15]} 40. g3 {[%clk 0:00:09]}  Rxd1 {[%clk 0:00:14]} 41. gxf4 {[%clk 0:00:07]}  Ra1 {[%clk 0:00:14]} 0-1


[Site "https://www.chess.com"]